Cogmind - Beta 10.2 @@@ ROGUE MODE // 2021.07.10 @ 21:24:33 // Winter2019/RPGLIKE Player: Kenzurith Result: Destroyed by as-35252 with Assembled F-torch Performance ------------- Evolutions (0) 0 Regions Visited (2) 400 Robots Destroyed (20) 100 Value Destroyed (548) 548 Prototype IDs (0) 0 Alien Tech Used (0) 0 Bonus (-151) -151 TOTAL SCORE: 897 Bonus ------- Friendly Fire -151 Cogmind --------- Core Integrity 0/700 Matter 9/300 Energy 210/210 System Corruption 0% Temperature Cool (31) Movement Rolling (100) Ox1 Location -10/Mines Parts ------- > --- POWER (2) -------- Light Nuclear Core Light Angular Momentum Engine > --- PROPULSION (2) --- Armored Wheel Armored Wheel > --- UTILITY (2) ------ Structural Scanner Improved Sensor Array > --- WEAPON (3) ------- Autogun Autogun Autogun > --- INVENTORY (3) ---- Autogun Grenade Launcher Peak State ------------ > --- POWER ------------ Light Nuclear Core Light Angular Momentum Engine > --- PROPULSION ------- Armored Wheel Armored Wheel > --- UTILITY ---------- Structural Scanner Improved Sensor Array > --- WEAPON ----------- Autogun Autogun Autogun > --- INVENTORY -------- Protomatter Autogun Grenade Launcher [Rating: 21] Favorites ----------- Power Light Ion Engine Engine Light Ion Engine Power Core Light Nuclear Core Propulsion Armored Wheel Leg Aluminum Leg Wheel Armored Wheel Utility Improved Sensor Array Device Improved Sensor Array Weapon Autogun Ballistic Gun Autogun Launcher Grenade Launcher Build | -11 -10 -10 ------- Run | Scr Mat Min Slots Evolved 5 | 3 2 . Power 1 | 1 . . Propulsion 1 | 1 . . Utility 1 | . 1 . Weapon 2 | 1 1 . Parts Attached 26 | 3 17 6 Power 5 | 1 3 1 Engine 3 | 1 1 1 Core 2 | . 2 . Reactor . | . . . Propulsion 4 | 1 3 . Treads . | . . . Leg 1 | 1 . . Wheel 3 | . 3 . Hover . | . . . Flight . | . . . Utility 3 | . 3 . Device 3 | . 3 . Storage . | . . . Processor . | . . . Hackware . | . . . Protection . | . . . Artifact . | . . . Weapon 14 | 1 8 5 Energy Gun . | . . . Energy Cannon . | . . . Ballistic Gun 11 | 1 7 3 Ballistic Cannon . | . . . Launcher 3 | . 1 2 Special Weapon . | . . . Impact Weapon . | . . . Slashing Weapon . | . . . Piercing Weapon . | . . . Special Melee Weapon . | . . . Unidentified Prototypes . | . . . Parts Lost . | . . . Power . | . . . Propulsion . | . . . Utility . | . . . Weapon . | . . . Highest Loss Streak . | . . . Average Slot Usage (%) 99 | . 98 100 Engine 17 | . 19 11 Core 6 | . 4 11 Wheel 22 | . 22 22 Device 23 | . 23 22 Ballistic Gun 27 | . 26 32 Naked Turns . | . . . Heaviest Build 25 | 10 19 25 Greatest Support 24 | 20 24 24 Greatest Overweight (x) 1 | . 1 1 Average Overweight (x) . | . . . Largest Inventory Capacity 3 | . 3 3 Average Capacity 2 | . 2 3 Most Carried 3 | . 3 3 Average Carried 2 | . 2 2 Final Capacity 3 | . 3 3 Final Carried 3 | . 3 2 Class Distribution -------------------- 62% | Mutant 37% | Skirmisher Dominant Class ---------------- Mutant | -10/Materials Skirmisher | -10/Mines Resources | -11 -10 -10 ----------- Run | Scr Mat Min Matter Collected 947 | 230 345 372 Remotely . | . . . Salvage Created 758 | . 520 238 Parts 37 | . 29 8 Haulers Intercepted 2 | . 2 . Recyclers Shooed 1 | . 1 . Parts Field Recycled . | . . . Retrieved Matter . | . . . Parts Self-Destructed . | . . . Prevented . | . . . Kills | -11 -10 -10 ------- Run | Scr Mat Min Combat Hostiles Destroyed 22 | . 10 12 Guns 18 | . 10 8 AOE 4 | . . 4 Classes Destroyed 7 | . 5 2 Worker 2 | . 2 . Hauler 2 | . 2 . Recycler 1 | . 1 . Watcher 1 | . 1 . Grunt 12 | . 10 2 Demolisher 1 | . . 1 Assembled 9 | . . 9 Thug 1 | . . 1 Best Kill Streak 4 | . 3 4 Combat Bots Only 4 | . 3 4 Max Kills in Single Turn 2 | . 2 2 Gunslinging 1 | . 1 1 Exploded 2 | . . 2 Melee . | . . . Uniques/NPCs Destroyed . | . . . Combat | -11 -10 -10 -------- Run | Scr Mat Min Damage Taken 1383 | . 316 1067 Core 1129 | . 244 885 Absorbed by Shields . | . . . Redirected to Core 868 | . 230 638 Core Remaining (%) 100 | 100 . . Volleys Fired 77 | . 43 34 Largest 3 | . 3 3 Hottest 69 | . 69 69 Shots Fired 187 | . 93 94 Gun 182 | . 92 90 Cannon . | . . . Launcher 5 | . 1 4 Special . | . . . Kinetic 182 | . 92 90 Thermal . | . . . Explosive 5 | . 1 4 Electromagnetic . | . . . Robot Hit Streak 9 | . 7 9 Robot Miss Streak 4 | . 3 4 Penetration Max . | . . . Secondary Targets 6 | . 4 2 Max Gunslinging Chain 2 | . 2 1 Shots Hit Robots 96 | . 51 45 Core Hits 52 | . 25 27 Critical Hits . | . . . Critical Kills . | . . . Critical Parts Destroyed . | . . . Melee Attacks . | . . . Impact . | . . . Slashing . | . . . Piercing . | . . . Sneak Attacks . | . . . Combat Hostiles . | . . . Follow-up Attacks . | . . . Damage Inflicted 1726 | . 821 905 Guns 1464 | . 792 672 Cannons . | . . . Explosions 262 | . 29 233 Melee . | . . . Ramming . | . . . Kinetic 1464 | . 792 672 Thermal . | . . . Explosive 262 | . 29 233 Electromagnetic . | . . . Impact . | . . . Slashing . | . . . Piercing . | . . . Highest Corruption . | . . . Average Corruption . | . . . Corruption Purged . | . . . Overload Shots . | . . . Overflow Damage . | . . . Projectiles . | . . . Explosions . | . . . Melee . | . . . Knockbacks . | . . . Impact . | . . . Kinetic . | . . . Secondary . | . . . Self-Inflicted Damage 23 | . . 23 Shots 1 | . . 1 Rammed . | . . . Targets Rammed . | . . . Kicked . | . . . Crushed . | . . . Highest Temperature 130 | . 130 85 Average Temperature 36 | . 38 33 Received Heat Transfer 223 | . 139 84 Siege Activations . | . . . Robots Corrupted . | . . . Combat Hostiles . | . . . Parts Fried . | . . . Impact Corruptions . | . . . Robots Melted . | . . . Combat Hostiles . | . . . Parts Melted . | . . . Heat Transferred . | . . . Parts Sabotaged . | . . . Parts Stolen . | . . . Parts Stripped . | . . . Power Chain Reactions . | . . . Missiles Intercepted . | . . . Alert | -11 -10 -10 ------- Run | Scr Mat Min Peak Influence 232 | . 232 80 Initial . | . . . Average 74 | . 76 71 Maximum Alert Level 1 | . 1 . Low Security (%) 92 | 100 89 100 Level 1 8 | . 10 . Level 2 . | . . . Level 3 . | . . . Level 4 . | . . . Level 5 . | . . . High Security . | . . . Max Security . | . . . Squads Dispatched 6 | . 6 . Investigation 6 | . 6 . Extermination . | . . . Reinforcement . | . . . Assault . | . . . Garrison . | . . . Intercept . | . . . Construction Impeded . | . . . Haulers Reinforced . | . . . Stealth | -11 -10 -10 --------- Run | Scr Mat Min Distress Signals . | . . . Communications Jammed . | . . . Distress Signals . | . . . Times Spotted 37 | . 18 19 Peak Tracking Total 5 | . 3 5 Tactical Retreats 2 | . 2 . Traps | -11 -10 -10 ------- Run | Scr Mat Min Traps Triggered 2 | . 2 . Indirectly . | . . . Trap Hack Attempts . | . . . Triggered . | . . . Disarmed . | . . . Reprogrammed . | . . . Reused . | . . . Traps Extracted . | . . . Installed . | . . . Triggered . | . . . Machines | -11 -10 -10 ---------- Run | Scr Mat Min Machines Disabled 2 | . 2 . Max in Single Turn 1 | . 1 . Machines Sabotaged . | . . . Garrisons Compromised . | . . . Overloaded Fab Kills . | . . . Fab Network Shutdowns . | . . . Hacking | -11 -10 -10 --------- Run | Scr Mat Min Machines Accessed 9 | . 9 . Terminals 7 | . 7 . Fabricators . | . . . Repair Stations . | . . . Recycling Units 2 | . 2 . Scanalyzers . | . . . Garrison Access . | . . . Total Hacks 19 | . 19 . Successful 9 | . 9 . Failed 10 | . 10 . Catastrophic 1 | . 1 . Database Lockouts . | . . . Manual 12 | . 12 . Terminals 16 | . 16 . Fabricators . | . . . Repair Stations . | . . . Recycling Units 3 | . 3 . Scanalyzers . | . . . Garrison Access . | . . . Terminal Hacks 4 | . 4 . Record 1 | . 1 . Recycling Unit Index 1 | . 1 . Unreport Threat 2 | . 2 . Fabricator Hacks . | . . . Repair Station Hacks . | . . . Recycling Unit Hacks 1 | . 1 . Report Inventory 1 | . 1 . Scanalyzer . | . . . Garrison Access Hacks . | . . . Unauthorized Hacks 4 | . 4 . Terminals 2 | . 2 . Sabotage 1 | . 1 . Search 1 | . 1 . Fabricators . | . . . Repair Stations . | . . . Recycling Units 2 | . 2 . Tunnel 2 | . 2 . Scanalyzers . | . . . Garrison Access . | . . . Data Cores Recovered . | . . . Used . | . . . Hacking Detections 5 | . 5 . Full Trace Events 2 | . 2 . Feedback Events . | . . . Feedback Blocked . | . . . Robot Schematics Acquired . | . . . Robots Built . | . . . Matter . | . . . Time . | . . . Total Robot Build Rating . | . . . Part Schematics Acquired . | . . . Parts Built . | . . . Matter . | . . . Time . | . . . Total Part Build Rating . | . . . Parts Repaired . | . . . Time . | . . . Parts Recycled . | . . . Recycled Matter . | . . . Retrieved Matter . | . . . Retrieved Components . | . . . Parts Scanalyzed . | . . . Part Schematics Acquired . | . . . Parts Damaged . | . . . Bothacking | -11 -10 -10 ------------ Run | Scr Mat Min Used RIF Installer . | . . . Robots Hacked . | . . . Non-combat . | . . . Combat . | . . . Robot Hacks Applied . | . . . Relay Couplers Released . | . . . Robots Rewired . | . . . Allies Hacked . | . . . Hacks Repelled . | . . . Allies | -11 -10 -10 -------- Run | Scr Mat Min Total Allies . | . . . Largest Group . | . . . Highest-Rated Group . | . . . Highest-Rated Ally . | . . . Total Orders . | . . . Ally Attacks . | . . . Total Damage . | . . . Kills . | . . . Allies Corrupted . | . . . Allies Melted . | . . . Intel | -11 -10 -10 ------- Run | Scr Mat Min Robot Analysis Total . | . . . Derelict Logs Recovered . | . . . Drone Launches . | . . . Drone Recoveries . | . . . Exploration | -11 -10 -10 ------------- Run | Scr Mat Min Turns Passed 1075 | 12 832 231 Spaces Moved 740 | 7 644 89 Core . | . . . Treads . | . . . Legs 28 | 7 21 . Wheels 712 | . 623 89 Hover . | . . . Flight . | . . . Fastest Speed 90 | 120 90 90 Average Speed 92 | 120 91 99 Slowest Speed 150 | 120 150 100 Overloaded Moves . | . . . Propulsion Burnouts . | . . . Robots Hopped . | . . . Cave-ins Triggered . | . . . Exploration Rate (%) 31 | 2 83 9 Regions Visited 2 Branch Regions 1 Pre-discovered Areas 2 | . 2 . Known Exits Taken . | . . . Unknown Exits Taken 2 | 1 1 . Scrap Searched . | . . . Spaces Dug . | . . . Terrain Destroyed 21 | . 6 15 Melee . | . . . Projectile . | . . . AOE 21 | . 6 15 Terrain Rammed . | . . . Walls Destroyed . | . . . Machines Disabled . | . . . Actions | -11 -10 -10 --------- Run | Scr Mat Min Total 1005 | 9 818 178 Wait 124 | . 86 38 Move 738 | 6 643 89 Hop . | . . . Pick Up 4 | . 4 . Fast Attach 13 | 3 10 . Attach . | . . . Detach . | . . . Swap 13 | . 7 6 Drop 10 | . 8 2 Fire 77 | . 43 34 Melee . | . . . Ram . | . . . Kick . | . . . Crush . | . . . Escape Stasis . | . . . Rewire . | . . . Trap . | . . . Miscellaneous 26 | . 17 9 Route ------- -11/Scrapyard -10/Materials (discovered 5 exits: [*Mat x3] / [*Min x2]) -10/Mines History --------- Turn | Location | Event 1 | -11/Scrapyard | Upgraded with Propulsion slot (x1) 1 | -11/Scrapyard | Upgraded with Weapon slot (x1) 1 | -11/Scrapyard | Upgraded with Power slot (x1) 1 | -11/Scrapyard | Discovered new exit (range 1) 13 | -11/Scrapyard | Entered Materials 23 | -10/Materials | Upgraded with Utility slot (x1) 304 | -10/Materials | Build established: Mutant 420 | -10/Materials | Discovered new exit (range 11) 451 | -10/Materials | Discovered new exit (range 16) 607 | -10/Materials | Reached level 2 618 | -10/Materials | Discovered new exit (range 16) 626 | -10/Materials | Upgraded with Weapon slot (x1) 824 | -10/Materials | Discovered new exit (range 5) 832 | -10/Materials | Discovered new exit (range 16) 845 | -10/Materials | Entered Mines 846 | -10/Mines | Assembled infested the area 888 | -10/Mines | Core integrity fell below 50% 955 | -10/Mines | Core integrity fell below 20% 981 | -10/Mines | Build established: Skirmisher 1076 | -10/Mines | Destroyed by as-35252 with Assembled F-torch Last Messages --------------- 00970_ The unstable cave ceiling collapses. 00973_ Acquired 10 matter. 00977_ Acquired 78 matter. 00986_ The unstable cave ceiling collapses. 00997_ as-28452 destroyed. 01001_ The unstable cave ceiling collapses. 01001_ as-15830 destroyed. 01006_ Acquired 11 matter. 01007_ Acquired 2 matter. 01041_ The unstable cave ceiling collapses. 01047_ Upgraded: Core Integrity (+100) 01047_ as-11876 destroyed. 01047_ Switching to secondary target: as-62196. 01047_ as-62196 destroyed. 01051_ The unstable cave ceiling collapses. 01060_ as-39690 destroyed. 01061_ The unstable cave ceiling collapses. 01066_ Acquired 18 matter. 01073_ The unstable cave ceiling collapses. 01074_ Acquired 14 matter. Map ----- +----------------------------------------------------+ | ????????????????????????????????????????????????? | | ????????????????????????????????????????????????? | | ????????????????????????????????????????????????? | | ????????????????????????????????????????????????? | | ????????????????????????????????????????????????? | | ????????????????????????????????????????????????? | | ????????????????????????????????????????????????? | | ????????????????????????????????????????????????? | | ????????????????????????????????????????????????? | | ????????????????????????????????????????????????? | | ????????????????????????????????????????????????? | | ????????????????????????????????????????????????? | | ????????????????????????????????????????????????? | | ????????????????????????????????????????????????? | | ????????????????????????????????????????????????? | | ????????????????????????????????????????????????? | | ????????????????????????????????????????????????? | | ????????????????????????????????????????????????? | | ?????????????????????####???????????????????????? | | ???????????????????#### ##?######???????????????? | | ???????????????????# ### ### #???????????????? | | ??????????????????## # # #???????????????? | | ??????????????????# ## # ## ##??????????????? | | ??????????????????# ## # #??????????????? | | ??????????????????# #=[a #??????????????? | | ??????????????????# #= @a ##??????????????? | | ??????????????????# ## ## ##?????????????? | | ??????????????????## #| # ###???????????? | | ??????????????????## #!!## ##??????????? | | ???????????????????###%=# # #??????????? | | ?????????????????? ??! %#### #??????????? | | ?????????????? a ] #?####### ##??????????? | | ?????????????#####?### #??????####???????????? | | ?????????????????#???# ????????????????????? | | ?????????????????????## ???????????????????? | | ??????????????????????## ??????????????????? | | ????????????????????????# ?????????????????? | | ????????????????????????? ????????????????? | | ?????????????????????????# #???????????????? | | ??????????????????????????# ####???????????????? | | ???????????????????????????###??????????????????? | | ????????????????????????????????????????????????? | | ????????????????????????????????????????????????? | | ????????????????????????????????????????????????? | | ????????????????????????????????????????????????? | | ????????????????????????????????????????????????? | | ????????????????????????????????????????????????? | | ????????????????????????????????????????????????? | | ????????????????????????????????????????????????? | | ????????????????????????????????????????????????? | +----------------------------------------------------+ Best States ------------- Heat Dissipation 37 Energy Generation 27 Energy Capacity 210 Matter Stores 300 Matter Capacity 300 Sight Range 16 Robot Scan Range 13 Terrain Scan Density 10 Heat Shielding 75 Evasion (%) 42 Item Schematics ----------------- None Robot Schematics ------------------ None Fabricated ------------ Nothing Alien Tech Used ----------------- None Achievements -------------- None Challenges ------------ None RPGLIKE | -11 -10 -10 --------- Run | Scr Mat Min Levels Raised 1 | . 1 . XP Earned 5965 | 3000 2065 900 XP Spent 4480 | 1500 2920 60 Upgrades 12 | 3 7 2 Power Slot 1 | 1 . . Propulsion Slot 1 | 1 . . Utility Slot 1 | . 1 . Weapon Slot 2 | 1 1 . Core Integrity 2 | . . 2 Heat Dissipation 2 | . 2 . Inventory Capacity 3 | . 3 . Protomatter Created 309 | . 207 102 Integrity Restored 539 | . 340 199 Core 428 | . 244 184 Parts 111 | . 96 15 Protomatter Decayed 110 | . 40 70 Game ------ Seed EtherialGodMeganuke Manual? 0 Play Time 00:15:16 Cumulative 305.7 hours Start 2021.07.10 @ 21:11:49 End 2021.07.10 @ 21:24:33 Sessions 1 Manual Loads 0 Difficulty Rogue Special Mode Winter2019/RPGLIKE Game No. 161 Rogue 158 Adventurer 1 Explorer 2 Win Type - Total 5 Types 3/1/1/0/0/0/0/0/0 Lore% 80 Gallery% 88 Achievement% 66 Wizard Run 0 Options --------- ASCII 0 Keyboard 1 Movement Numpad Keybinds 1 Fullscreen 2 Font 24/Terminus Map View 76x50 Tactical HUD 1 Map Filters NONE Filters LOW_CONTRAST(0,0,0) Steam 1 RUN: 8834d14e-22a0-4d98-90ce-f2697f5b1867